bitfinex/quotes_SOLUSD_20250617
["timestamp","ask_amount","ask_price","bid_price","bid_amount"]
[1750165087071,4.80417778,149.8,149.76,4.80417778]
[1750165087971,11.52779252,149.81,149.76,11.48146046]
[1750165088172,16.3319703,149.81,149.76,11.48146046]
[1750165088381,34.98161916,149.81,149.76,11.48146046]
[1750165088563,30.12921137,149.81,149.76,11.48146046]
[1750165089359,11.47976728,149.8,149.76,11.48146046]
[1750165089557,4.80417778,149.79,149.75,6.67759529]
[1750165089755,4.80417778,149.78,149.73,4.80417778]
[1750165089960,4.80417778,149.78,149.74,4.80417778]
[1750165090673,4.80417778,149.78,149.73,11.48286608]
[1750165090977,11.48069601,149.78,149.73,11.48286608]
[1750165091176,4.80417778,149.77,149.73,11.48286608]
[1750165091477,11.48069601,149.78,149.73,11.48286608]
[1750165092077,4.80417778,149.78,149.74,4.80417778]
[1750165092879,4.80417778,149.78,149.74,11.48222648]
[1750165093174,9.65748635,149.8,149.76,4.80417778]
[1750165093481,4.86140012,149.8,149.77,4.80417778]
[1750165093664,4.80417778,149.8,149.76,4.80417778]
[1750165094062,4.80417778,149.79,149.75,4.80417778]
[1750165094264,4.80417778,149.79,149.75,11.48184802]
[1750165094866,16.34131378,149.8,149.76,4.80417778]
[1750165095177,4.80417778,149.78,149.74,4.80417778]
[1750165097284,9.66984716,149.77,149.73,4.80417778]
[1750165097457,16.3468016,149.77,149.73,4.80417778]
[1750165097657,4.86566938,149.76,149.73,4.80417778]
[1750165098278,4.86566938,149.77,149.74,4.80417778]
[1750165099485,4.87047804,149.77,149.74,4.80417778]
[1750165099789,4.80417778,149.81,149.76,4.80417778]
[1750165099988,4.8751586,149.8,149.77,4.80417778]
[1750165100197,4.8751586,149.79,149.77,4.80417778]
[1750165100371,4.8751586,149.8,149.77,4.80417778]
[1750165100571,4.8751586,149.79,149.77,4.80417778]
[1750165100760,4.8751586,149.8,149.78,4.80417778]
[1750165100968,4.87660576,149.81,149.79,4.80417778]
[1750165101273,4.87660576,149.81,149.77,26.0]
[1750165101461,4.87660576,149.81,149.79,4.80417778]
[1750165102472,4.87660576,149.81,149.79,11.47993054]
[1750165103073,30.0,149.82,149.79,11.47993054]
[1750165103280,4.87921092,149.81,149.79,11.47993054]
[1750165103486,4.88060812,149.8,149.78,4.80417778]
[1750165103691,34.80417778,149.82,149.78,4.80417778]
[1750165103923,4.88053615,149.81,149.78,4.80417778]
[1750165104098,4.88053615,149.8,149.78,4.80417778]
[1750165104290,34.80417778,149.82,149.78,4.80417778]
[1750165104484,34.80417778,149.82,149.76,16.69326961]
[1750165104485,4.88078595,149.81,149.8,6.67556742]
[1750165105096,4.88078595,149.81,149.79,11.48004374]
[1750165105273,4.88078595,149.8,149.79,11.48004374]
[1750165105475,4.88078595,149.81,149.79,11.48004374]
[1750165105682,4.88078595,149.8,149.79,11.48004374]
[1750165106386,4.88078595,149.81,149.79,11.48004374]
[1750165106587,30.0,149.82,149.79,6.67586596]
[1750165106799,4.88364941,149.81,149.79,11.48004374]
[1750165107100,4.80417778,149.8,149.74,34.182]
[1750165107396,4.80417778,149.8,149.76,4.80417778]
[1750165107906,4.88294921,149.79,149.76,4.80417778]
[1750165108308,4.88294921,149.78,149.77,11.48108236]
[1750165108477,4.88216678,149.8,149.77,11.48108236]
[1750165108668,4.88216678,149.79,149.77,11.48108236]
[1750165108890,23.73814978,149.81,149.77,11.48108236]
[1750165109082,4.88267134,149.8,149.78,4.80417778]
[1750165109290,41.47891176,149.82,149.77,6.67690458]
[1750165109496,9.6870212,149.81,149.77,4.80417778]
[1750165109693,4.88284342,149.8,149.77,4.80417778]
[1750165110002,4.88284342,149.79,149.77,4.80417778]
[1750165110294,36.67473398,149.82,149.77,11.48092072]
[1750165110495,9.68818657,149.81,149.77,11.48092072]
[1750165110700,4.88400879,149.8,149.77,11.48092072]
[1750165110883,4.88400879,149.79,149.77,11.48092072]
[1750165111205,4.88400879,149.78,149.77,11.48092072]
[1750165111381,4.88400879,149.8,149.77,11.48092072]
[1750165111585,4.80417778,149.81,149.77,11.48092072]
[1750165111586,4.88400879,149.79,149.77,11.48092072]
[1750165111783,4.80417778,149.81,149.77,11.48092072]
[1750165111989,4.88438285,149.8,149.77,11.48092072]
[1750165112199,4.88438285,149.79,149.77,11.48092072]
[1750165112401,4.80417778,149.81,149.77,11.48092072]
[1750165112590,4.88466862,149.8,149.77,11.48092072]
[1750165112794,4.88466862,149.79,149.77,11.48092072]
[1750165112980,4.80417778,149.81,149.77,11.48092072]
[1750165113185,4.88608595,149.8,149.77,11.48092072]
[1750165113378,4.88672259,149.79,149.77,11.48092072]
[1750165113577,4.80417778,149.81,149.77,11.48092072]
[1750165113778,4.88694762,149.8,149.77,11.48092072]
[1750165114000,4.88694762,149.79,149.77,11.48092072]
[1750165114300,4.80417778,149.81,149.77,11.48092072]
[1750165114500,4.88807424,149.8,149.77,11.48092072]
[1750165114686,4.88807424,149.79,149.77,11.48092072]
[1750165114886,4.80417778,149.81,149.77,11.48092072]
[1750165115097,4.8883611,149.8,149.77,11.48092072]
[1750165115295,4.80417778,149.78,149.71,23.37851977]
[1750165115503,9.69253888,149.77,149.73,4.80417778]
[1750165115793,4.80417778,149.77,149.73,4.80417778]
[1750165116303,4.88256744,149.76,149.73,4.80417778]
[1750165116503,4.80417778,149.77,149.73,4.80417778]
[1750165116704,4.88256744,149.76,149.73,4.80417778]
[1750165116903,4.80417778,149.77,149.73,4.80417778]
[1750165117108,9.68729741,149.76,149.7,14.1399]
[1750165117278,9.68729741,149.75,149.71,4.80417778]
[1750165117479,4.80417778,149.75,149.71,4.80417778]
[1750165117687,6.67703978,149.77,149.72,4.80417778]
[1750165117889,9.68590888,149.76,149.72,4.80417778]
[1750165118092,4.8817311,149.75,149.72,4.80417778]
[1750165118296,4.80417778,149.76,149.72,4.80417778]
[1750165118501,4.88171332,149.75,149.72,4.80417778]
[1750165118804,4.80417778,149.76,149.72,4.80417778]
[1750165119004,4.88224992,149.75,149.72,4.80417778]
[1750165119192,4.80417778,149.76,149.72,4.80417778]
[1750165119388,4.88146695,149.75,149.72,4.80417778]
[1750165119594,6.67803832,149.75,149.72,4.80417778]
[1750165119796,9.68525733,149.74,149.67,1.633]
[1750165119986,4.88107955,149.73,149.7,4.80417778]
[1750165120189,4.80417778,149.74,149.7,4.80417778]
[1750165120389,11.56019466,149.73,149.7,4.80417778]
[1750165120688,4.88147754,149.72,149.7,4.80417778]
[1750165121003,6.6786883,149.73,149.7,4.80417778]
[1750165121195,6.6786883,149.73,149.69,4.80417778]
[1750165121401,7.21,149.71,149.7,4.80417778]
[1750165122405,7.21,149.71,149.67,8.31433079]
[1750165122709,7.21,149.71,149.69,4.80417778]
[1750165123219,13.88961739,149.71,149.67,1.633]
[1750165123696,13.88961739,149.71,149.69,4.80417778]
[1750165124212,13.88964772,149.71,149.7,4.80417778]
[1750165124595,13.88964772,149.71,149.66,49.57499398]
[1750165124903,13.88964772,149.71,149.7,4.80417778]
[1750165126609,13.88964772,149.71,149.69,4.80417778]
[1750165128512,13.88964772,149.71,149.7,4.80417778]
[1750165128513,7.21,149.71,149.7,4.80417778]
[1750165128708,7.21,149.71,149.7,6.36487778]
[1750165129215,6.67808661,149.75,149.7,13.0449045]
[1750165129521,6.67808661,149.75,149.74,4.80417778]
[1750165129703,13.88808661,149.75,149.74,4.80417778]
[1750165129908,13.88808661,149.75,149.7,8.24072672]
[1750165130118,13.88808661,149.75,149.73,4.80417778]
[1750165130713,7.21,149.74,149.73,4.80417778]
[1750165131421,13.88824228,149.74,149.7,1.5607]
[1750165131610,13.88824228,149.74,149.73,4.80417778]
[1750165135800,7.21,149.74,149.73,4.80417778]
[1750165137222,13.88824228,149.74,149.73,4.80417778]
[1750165146845,7.21,149.74,149.73,4.80417778]
[1750165147214,7.21,149.74,149.73,16.28704386]
[1750165148336,6.67655145,149.78,149.73,16.28704386]
[1750165148560,9.68432753,149.77,149.7,1.5607]
[1750165148722,30.0,149.73,149.7,4.80417778]
[1750165148921,4.87753911,149.72,149.69,5.96]
[1750165149137,34.80417778,149.73,149.69,5.96]
[1750165149322,4.87868316,149.72,149.69,10.76417778]
[1750165149517,6.67913438,149.72,149.69,10.76417778]
[1750165149738,4.8771636,149.71,149.69,10.76417778]
[1750165151743,6.67913438,149.72,149.69,10.76417778]
[1750165151955,4.87981303,149.71,149.69,10.76417778]
[1750165152124,6.67913438,149.72,149.69,10.76417778]
[1750165152323,4.87843385,149.71,149.69,10.76417778]
[1750165152526,6.67913438,149.72,149.69,10.76417778]
[1750165152744,4.8786891,149.71,149.69,10.76417778]
[1750165153561,6.67913438,149.72,149.69,10.76417778]
[1750165153859,4.87949656,149.71,149.69,10.76417778]
[1750165154059,4.87846599,149.71,149.69,10.76417778]
[1750165154436,6.67913438,149.72,149.69,10.76417778]
[1750165154634,4.8800111,149.71,149.69,10.76417778]
[1750165154866,6.67913438,149.72,149.69,10.76417778]
[1750165155048,4.87998367,149.71,149.69,10.76417778]
[1750165155231,6.67913438,149.72,149.69,10.76417778]
[1750165155431,4.87997733,149.71,149.69,10.76417778]
[1750165155746,6.67913438,149.72,149.69,10.76417778]
[1750165156050,4.87916201,149.71,149.69,10.76417778]
[1750165156259,6.67913438,149.72,149.69,10.76417778]
[1750165156436,41.48302848,149.73,149.69,10.76417778]
[1750165157352,4.88094273,149.72,149.69,10.76417778]
[1750165158258,4.88094273,149.72,149.7,4.80417778]
[1750165158435,36.67882509,149.73,149.7,4.80417778]
[1750165158839,4.88169837,149.71,149.7,4.80417778]
[1750165159048,36.67882509,149.73,149.7,4.80417778]
[1750165159949,11.56086372,149.72,149.7,4.80417778]
[1750165160758,4.88169854,149.72,149.7,4.80417778]
[1750165161476,11.56106353,149.72,149.65,8.07054453]
[1750165161763,4.88431831,149.71,149.69,4.80417778]
[1750165161942,36.67898037,149.73,149.7,4.80417778]
[1750165162144,4.88493106,149.72,149.7,4.80417778]
[1750165162455,4.88493106,149.71,149.7,4.80417778]
[1750165163051,4.88493106,149.71,149.7,11.4842045]
[1750165163243,30.0,149.73,149.7,11.4842045]
[1750165163443,4.8852701,149.72,149.7,11.4842045]
[1750165163749,30.0,149.73,149.71,4.80417778]
[1750165164050,4.88541091,149.72,149.67,6.68136567]
[1750165164251,30.0,149.73,149.67,23.38477984]
[1750165164427,4.8853311,149.72,149.67,23.38477984]
[1750165164630,30.0,149.73,149.67,23.38477984]
[1750165165149,30.0,149.73,149.72,4.80417778]
[1750165165467,34.88563389,149.73,149.72,4.80417778]
[1750165166153,34.88563389,149.73,149.71,4.80417778]
[1750165166344,30.0,149.73,149.71,4.80417778]
[1750165167062,30.0,149.73,149.72,4.80417778]
[1750165168075,30.0,149.73,149.72,11.48331216]
[1750165169564,31.7874292,149.77,149.72,11.48331216]
[1750165169771,4.88397591,149.76,149.73,4.80417778]
[1750165169944,31.7874292,149.77,149.73,4.80417778]
[1750165170151,4.88396165,149.76,149.73,4.80417778]
[1750165170350,31.7874292,149.77,149.73,4.80417778]
[1750165170351,4.88396165,149.75,149.73,4.80417778]
[1750165170553,4.88396165,149.74,149.73,4.80417778]
[1750165171855,4.88396165,149.74,149.72,6.67913438]
[1750165172062,6.67735651,149.76,149.73,4.80417778]
[1750165172374,4.88388053,149.75,149.73,4.80417778]
[1750165172575,4.88388053,149.74,149.73,4.80417778]
[1750165172762,4.88257026,149.74,149.73,4.80417778]
[1750165173273,4.88257026,149.74,149.73,11.48286608]
[1750165173495,56.129969,149.79,149.73,11.48286608]
[1750165173652,4.80417778,149.77,149.73,4.80417778]
[1750165173850,4.8834955,149.76,149.73,4.80417778]
[1750165174161,4.8834955,149.75,149.73,4.80417778]
[1750165174358,4.80417778,149.78,149.73,4.80417778]
[1750165174553,4.88308073,149.77,149.73,11.48283111]
[1750165174755,4.88308073,149.76,149.73,11.48283111]
[1750165174967,4.88308073,149.75,149.73,11.48283111]
[1750165175171,11.48082695,149.78,149.73,11.48283111]
[1750165175378,4.88292191,149.77,149.74,4.80417778]
[1750165175548,4.88292191,149.76,149.74,4.80417778]
[1750165175755,4.88292191,149.75,149.74,4.80417778]
[1750165176877,4.88292191,149.75,149.73,6.67865333]
[1750165177089,11.48082695,149.78,149.74,4.80417778]
[1750165177257,4.88274849,149.77,149.74,4.80417778]
[1750165177458,4.88274849,149.76,149.74,4.80417778]
[1750165177682,4.88274849,149.75,149.74,4.80417778]
[1750165177868,11.48082695,149.78,149.74,4.80417778]
[1750165178193,4.88251787,149.77,149.74,11.48241245]
[1750165178478,4.88251787,149.76,149.74,11.48241245]
[1750165178660,11.48082695,149.78,149.74,11.48241245]
[1750165178860,4.88222859,149.77,149.74,11.48241245]
[1750165179065,4.88222859,149.76,149.74,11.48241245]
[1750165179280,11.48082695,149.78,149.74,11.48241245]
[1750165179476,4.88303807,149.77,149.74,11.48241245]
[1750165179660,4.88303807,149.76,149.74,11.48241245]
[1750165179858,11.48082695,149.78,149.74,11.48241245]
[1750165180067,4.88311573,149.77,149.74,11.48241245]
[1750165180261,4.88311573,149.76,149.74,11.48241245]
[1750165180568,11.48082695,149.78,149.74,11.48241245]
[1750165180752,4.88315245,149.77,149.7,23.37915263]
[1750165180952,30.12997602,149.79,149.75,4.80417778]
[1750165181183,4.88281683,149.78,149.75,4.80417778]
[1750165181362,4.88281683,149.77,149.75,4.80417778]
[1750165181561,4.88281683,149.76,149.75,4.80417778]
[1750165182169,30.12997602,149.79,149.75,4.80417778]
[1750165182376,4.88266492,149.78,149.75,4.80417778]
[1750165182686,4.88266492,149.77,149.74,6.67822951]
[1750165182989,4.88266492,149.76,149.75,4.80417778]
[1750165184267,4.88266492,149.76,149.74,6.67822951]
[1750165184476,6.67647229,149.78,149.75,4.80417778]
[1750165184790,4.88189161,149.77,149.75,4.80417778]
[1750165185089,4.8816687,149.76,149.75,4.80417778]
[1750165185273,6.67647229,149.78,149.75,4.80417778]
[1750165185473,4.88171897,149.77,149.74,4.80417778]
[1750165185672,6.67647229,149.78,149.74,4.80417778]
[1750165185869,4.88171687,149.77,149.74,4.80417778]
[1750165186070,6.67647229,149.78,149.7,23.37915263]
[1750165186391,4.88088103,149.77,149.7,23.37915263]
[1750165186579,4.88088103,149.76,149.74,11.48240605]
[1750165186772,9.75443942,149.78,149.74,9.7561954]
[1750165187093,4.88068467,149.77,149.74,9.7561954]
[1750165187293,4.88068467,149.76,149.74,9.7561954]
[1750165187503,6.67647229,149.78,149.74,9.7561954]
[1750165187789,4.88068622,149.77,149.74,9.7561954]
[1750165187990,4.88068622,149.76,149.74,9.7561954]
[1750165188193,4.88017495,149.78,149.74,9.7561954]
[1750165188365,4.88017495,149.77,149.75,3.07796713]
[1750165188571,4.88054894,149.79,149.76,3.07796713]
[1750165188767,4.88054894,149.78,149.76,3.07796713]
[1750165189004,9.75371995,149.8,149.76,3.07796713]
[1750165189209,4.88063304,149.79,149.76,3.07796713]
[1750165189402,9.75371995,149.8,149.69,65.51113337]
[1750165189403,4.88063304,149.78,149.7,23.38009352]
[1750165189697,4.88043734,149.77,149.76,3.07796713]
[1750165190285,4.88043734,149.79,149.76,3.07796713]
[1750165190485,4.88043734,149.78,149.76,3.07796713]
[1750165190705,18.933972,149.81,149.77,3.07796713]
[1750165190911,4.88030456,149.8,149.77,3.07796713]
[1750165191211,22.01193913,149.81,149.77,3.07796713]
[1750165191383,4.87846833,149.8,149.77,3.07796713]
[1750165191579,4.87846833,149.79,149.77,3.07796713]
[1750165191902,22.01193913,149.81,149.77,3.07796713]
[1750165191903,4.87846833,149.8,149.77,9.7548141]
[1750165192077,28.68706316,149.81,149.77,9.7548141]
[1750165192276,4.87791325,149.8,149.77,9.7548141]
[1750165192473,28.68706316,149.81,149.77,9.7548141]
[1750165192702,7.95588055,149.8,149.76,9.75511171]
[1750165192895,4.87791342,149.79,149.76,9.75511171]
[1750165193099,3.07796713,149.8,149.76,9.75511171]
[1750165193291,4.87758506,149.79,149.76,9.75511171]
[1750165193490,3.07796713,149.8,149.76,9.75511171]
[1750165193794,4.87755624,149.79,149.76,9.75511171]
[1750165193991,3.07796713,149.79,149.75,6.67779632]
[1750165194210,4.87656245,149.78,149.75,9.75576345]
[1750165194404,3.07796713,149.79,149.75,9.75576345]
[1750165194580,4.87656081,149.78,149.75,9.75576345]
[1750165194900,3.07796713,149.79,149.75,9.75576345]
[1750165195107,4.87712437,149.78,149.75,9.75576345]
[1750165195276,3.07796713,149.79,149.75,9.75576345]
[1750165195479,4.877146,149.78,149.76,3.07796713]
[1750165195681,9.75359515,149.8,149.76,3.07796713]
[1750165195977,4.87715131,149.79,149.76,3.07796713]
[1750165196180,4.87715131,149.78,149.75,9.75576345]
[1750165196404,3.07796713,149.79,149.75,9.75576345]
[1750165196613,4.87782324,149.78,149.75,9.75576345]
[1750165196780,9.75359515,149.8,149.76,3.07796713]
[1750165197107,4.87908215,149.79,149.76,3.07796713]
[1750165197283,4.87908215,149.78,149.76,3.07796713]
[1750165197477,9.75359515,149.8,149.76,3.07796713]
[1750165197674,4.87999866,149.79,149.76,3.07796713]
[1750165197880,4.87999866,149.78,149.76,3.07796713]
[1750165198077,9.75359515,149.8,149.76,3.07796713]
[1750165198279,4.88007917,149.79,149.76,3.07796713]
[1750165198476,4.88006566,149.78,149.76,3.07796713]
[1750165198705,9.75359515,149.8,149.76,3.07796713]
[1750165198900,4.88013968,149.79,149.76,3.07796713]
[1750165199104,4.88013968,149.78,149.76,9.75529289]
[1750165199301,4.88199221,149.77,149.76,6.67732576]
[1750165199509,4.88199221,149.79,149.76,9.75529289]
[1750165199703,4.88199221,149.78,149.76,9.75529289]
[1750165200010,4.88199221,149.77,149.75,9.75562556]
[1750165200209,4.88206399,149.79,149.75,9.75562556]
[1750165200389,4.88206399,149.78,149.75,9.75562556]
[1750165200590,4.88206399,149.77,149.75,9.75562556]
[1750165200789,7.95996465,149.76,149.72,6.67913438]
[1750165200988,7.95996465,149.75,149.71,3.07796713]
[1750165201310,6.67958052,149.71,149.66,3.07796713]
[1750165201493,18.933972,149.69,149.65,1.3883177]
[1750165201701,3.07796713,149.67,149.65,1.3883177]
[1750165202207,7.95887646,149.66,149.65,1.3883177]
[1750165202416,3.07796713,149.66,149.65,1.3883177]
[1750165202711,26.89284846,149.66,149.65,1.3883177]
[1750165202890,28.63325585,149.66,149.65,1.3883177]
[1750165203296,4.88090933,149.66,149.65,1.3883177]
[1750165203611,0.28432314,149.67,149.65,1.3883177]
[1750165203812,9.97323592,149.67,149.65,1.3883177]
[1750165203983,28.62288478,149.66,149.65,1.3883177]
[1750165204191,23.80451026,149.66,149.65,1.3883177]
[1750165204396,28.62288478,149.66,149.65,1.3883177]
[1750165204806,18.933972,149.66,149.65,1.3883177]
[1750165204998,23.75234652,149.66,149.65,1.3883177]
[1750165205316,25.6157841,149.66,149.65,1.3883177]
[1750165205510,27.44,149.67,149.65,1.3883177]
[1750165205831,18.64964886,149.69,149.66,4.81837452]
[1750165206015,23.51561862,149.69,149.66,4.81837452]
[1750165206311,18.64964886,149.69,149.66,4.81837452]
[1750165206521,18.64964886,149.69,149.65,1.3883177]
[1750165206700,18.64964886,149.69,149.65,6.20669222]
[1750165207102,18.64964886,149.69,149.65,1.3883177]
[1750165207103,4.81837452,149.68,149.65,1.3883177]
[1750165208014,30.14888591,149.69,149.65,1.3883177]
[1750165208314,30.14888591,149.69,149.65,6.20669222]
[1750165209119,30.14888591,149.69,149.65,1.3883177]
[1750165209488,30.14888591,149.69,149.65,6.20669222]
[1750165209694,30.0,149.66,149.65,1.3883177]
[1750165210127,30.0,149.66,149.65,6.20669222]
[1750165214502,30.0,149.66,149.65,1.3883177]
[1750165214726,30.0,149.66,149.65,6.20669222]
[1750165215320,30.0,149.66,149.65,1.3883177]
[1750165215522,30.0,149.66,149.65,12.88895082]
[1750165215835,30.0,149.66,149.65,23.91662534]
[1750165216029,1.627,149.77,149.73,4.81837452]
[1750165216226,18.933972,149.76,149.73,4.81837452]
[1750165216402,6.67763223,149.76,149.73,4.81837452]
[1750165216731,30.14565561,149.76,149.72,4.81837452]
[1750165216903,4.81837452,149.74,149.7,4.81837452]
[1750165217308,4.81837452,149.74,149.66,4.81837452]
[1750165217632,4.81837452,149.74,149.7,4.81837452]
[1750165217935,11.94331312,149.73,149.7,4.81837452]
[1750165218428,11.94331312,149.73,149.69,4.81837452]
[1750165218429,16.76168764,149.73,149.69,4.81837452]
[1750165218808,11.54746142,149.72,149.69,4.81837452]
[1750165220618,11.54746142,149.72,149.7,4.81837452]
[1750165221542,11.54746142,149.72,149.71,4.81837452]
[1750165224061,11.54746142,149.72,149.7,4.81837452]
[1750165225139,11.54746142,149.72,149.71,4.81837452]
[1750165226242,11.54746142,149.72,149.7,4.81837452]
[1750165226613,11.54746142,149.72,149.71,4.81837452]
[1750165228920,11.54746142,149.72,149.67,16.70341417]
[1750165229136,23.04501297,149.72,149.68,4.81837452]
[1750165229440,4.81837452,149.71,149.67,4.81837452]
[1750165229621,16.50999256,149.71,149.67,4.81837452]
[1750165230028,11.73089143,149.7,149.65,8.07046291]
[1750165230353,11.73089143,149.7,149.68,4.81837452]
[1750165230519,11.73089143,149.7,149.65,8.07046291]
[1750165230717,11.73089143,149.7,149.68,4.81837452]
[1750165231340,11.73089143,149.7,149.66,6.68145341]
[1750165231574,11.73089143,149.7,149.66,11.49982793]
[1750165232942,23.2293597,149.7,149.66,4.81837452]
[1750165233317,12.20468364,149.69,149.66,4.81837452]
[1750165234115,12.20468364,149.69,149.67,4.81837452]
[1750165235559,12.20468364,149.69,149.66,4.81837452]
[1750165236346,18.88520386,149.69,149.66,4.81837452]
[1750165236558,4.81837452,149.67,149.65,1.3883177]
[1750165237060,11.45010922,149.66,149.65,1.3883177]
[1750165237958,35.20245574,149.66,149.65,1.3883177]
[1750165238341,40.06762554,149.66,149.65,1.3883177]
[1750165238545,46.74943764,149.66,149.65,1.3883177]
[1750165238976,41.93106312,149.66,149.65,1.3883177]
[1750165239271,58.13951216,149.66,149.65,1.3883177]
[1750165239446,53.27434236,149.66,149.65,1.3883177]
[1750165239637,59.74530346,149.66,149.65,1.3883177]
[1750165240141,87.18530346,149.66,149.65,1.3883177]
[1750165240743,87.1855333,149.66,149.65,1.3883177]
[1750165241983,59.7455333,149.66,149.65,1.3883177]
[1750165242136,87.2055333,149.66,149.65,1.3883177]
[1750165243165,43.53708426,149.66,149.65,1.3883177]
[1750165243466,73.90223564,149.66,149.65,1.3883177]
[1750165243664,74.18655878,149.66,149.65,1.3883177]
[1750165243842,74.04439721,149.66,149.65,1.3883177]
[1750165244358,74.18655878,149.66,149.65,1.3883177]
[1750165244935,69.36818426,149.66,149.65,1.3883177]
[1750165245134,74.18789185,149.66,149.65,1.3883177]
[1750165247570,69.36951733,149.66,149.65,1.3883177]
[1750165247744,74.19158242,149.66,149.65,1.3883177]
[1750165247944,81.40158241,149.66,149.65,1.3883177]
[1750165249770,23.52742379,149.66,149.65,1.3883177]
[1750165249941,18.66010922,149.66,149.65,6.20669222]
[1750165250141,11.45010922,149.66,149.65,6.20669222]
[1750165250569,11.45010922,149.66,149.65,12.88895082]
[1750165251160,11.45010922,149.66,149.65,6.20669222]
[1750165257446,11.45010922,149.66,149.65,12.88895082]
[1750165260282,11.45010922,149.66,149.65,1.3883177]
[1750165260486,18.66010922,149.66,149.65,1.3883177]
[1750165260775,49.09426784,149.66,149.65,1.3883177]
[1750165260946,53.9678663,149.66,149.65,1.3883177]
[1750165261146,49.09426784,149.66,149.65,1.3883177]
[1750165261382,53.96785849,149.66,149.65,1.3883177]
[1750165261694,53.96780424,149.66,149.65,1.3883177]
[1750165262352,53.96781223,149.66,149.65,1.3883177]
[1750165264348,49.09426784,149.66,149.65,1.3883177]
[1750165264586,53.96853483,149.66,149.65,1.3883177]
[1750165265858,18.66010922,149.66,149.65,1.3883177]
[1750165266784,23.53486825,149.66,149.65,1.3883177]
[1750165266975,18.66010922,149.66,149.65,1.3883177]
[1750165268065,18.66010922,149.66,149.65,6.20669222]
[1750165269783,18.66010922,149.66,149.65,1.3883177]
[1750165270082,18.66010922,149.66,149.65,6.20669222]
[1750165270289,18.66010922,149.66,149.65,12.88895082]
[1750165271569,18.66010922,149.66,149.65,17.70732534]
[1750165271758,11.45010922,149.66,149.65,23.73852534]
[1750165271960,4.87974831,149.73,149.68,26.0]
[1750165272292,4.87974831,149.78,149.72,9.63674904]
[1750165272460,4.87974831,149.77,149.73,4.81837452]
[1750165272659,4.88759958,149.79,149.73,4.81837452]
[1750165272960,4.88790356,149.78,149.73,4.81837452]
[1750165273165,4.88790356,149.77,149.73,4.81837452]
[1750165273373,4.88790356,149.79,149.73,4.81837452]
[1750165273578,16.15058271,149.8,149.73,4.81837452]
[1750165273766,16.15058271,149.8,149.77,4.81837452]
[1750165274361,11.26267915,149.8,149.77,4.81837452]
[1750165274563,20.96285108,149.8,149.76,4.81837452]
[1750165275265,27.63852673,149.8,149.76,4.81837452]
[1750165275465,18.79181043,149.79,149.75,4.81837452]
[1750165275666,23.67360784,149.79,149.75,4.81837452]
[1750165275867,28.49198236,149.79,149.75,4.81837452]
[1750165276086,30.28627293,149.79,149.75,4.81837452]
[1750165276287,4.81837452,149.78,149.74,4.81837452]
[1750165276485,11.26267915,149.8,149.76,4.81837452]
[1750165276696,11.26267915,149.8,149.78,4.81837452]
[1750165276988,11.26267915,149.8,149.73,4.81837452]
[1750165276989,11.26267915,149.8,149.79,4.81837452]
[1750165278058,11.26267915,149.8,149.79,11.4943876]
[1750165282577,11.26267915,149.8,149.79,16.31276212]
[1750165283699,11.26267915,149.8,149.79,11.4943876]
[1750165285668,11.26267915,149.8,149.79,6.67601308]
[1750165285967,11.26267915,149.8,149.79,11.4943876]
[1750165288121,12.61127799,149.9,149.79,33.00279483]
[1750165288427,18.64964886,149.89,149.86,4.81837452]
[1750165288579,7.21,149.87,149.86,4.81837452]
[1750165289377,7.21,149.87,149.84,4.81837452]
[1750165289583,7.21,149.87,149.85,4.81837452]
[1750165289978,7.21,149.87,149.82,23.36136696]
[1750165289979,7.21,149.87,149.86,4.81837452]
[1750165290224,7.21,149.87,149.85,4.81837452]
[1750165290713,7.21,149.87,149.82,23.36136696]
[1750165290714,7.21,149.87,149.86,4.81837452]
[1750165291018,7.21,149.87,149.82,23.36136696]
[1750165291240,7.21,149.87,149.86,11.49126922]
[1750165292087,7.21,149.87,149.86,6.6728947]
[1750165292397,7.21,149.87,149.86,11.49126922]
[1750165293508,7.21,149.87,149.81,5.94]
[1750165293509,4.81837452,149.87,149.81,5.94]
[1750165293808,4.81837452,149.85,149.81,12.61498995]
[1750165293991,4.81837452,149.86,149.82,4.81837452]
[1750165294309,4.81837452,149.87,149.83,4.81837452]
[1750165294997,4.81837452,149.86,149.82,4.81837452]
[1750165295486,23.46802338,149.87,149.83,4.81837452]
[1750165296207,30.14054178,149.87,149.81,12.61498995]
[1750165296413,4.81837452,149.85,149.81,5.94]
[1750165296587,4.81837452,149.84,149.81,5.94]
[1750165297293,11.49220078,149.84,149.8,11.49381907]
[1750165297493,11.49220078,149.84,149.78,11.49483332]
[1750165297494,6.67382626,149.84,149.78,11.49483332]
[1750165297687,4.81837452,149.82,149.78,11.49483332]
[1750165298089,4.81837452,149.83,149.78,6.6764588]
[1750165298394,4.81837452,149.82,149.78,11.49483332]
[1750165298886,18.933972,149.83,149.78,6.6764588]
[1750165299083,18.933972,149.83,149.8,4.81837452]
[1750165299522,4.81837452,149.84,149.8,4.81837452]
[1750165299813,18.64964886,149.84,149.81,4.81837452]
[1750165303903,30.14203963,149.84,149.8,4.81837452]